Cogmind - Beta 16 @@@ ROGUE MODE // 2025.11.07 @ 19:55:20 Player: daxter767676 Result: Destroyed by 6B-A6Q(R) with Subdweller Machine Gun Performance ------------- Evolutions (0) 0 Regions Visited (2) 400 Robots Destroyed (17) 85 Value Destroyed (671) 671 Prototype IDs (12) 240 Alien Tech Used (0) 0 Bonus (0) 0 TOTAL SCORE: 1396 Bonus ------- None Cogmind --------- Core Integrity 0/250 Matter 280/300 Energy 146/160 System Corruption 0% Temperature Cool (0) Movement Rolling (125) Ox3 Location -10/Subcaves Parts ------- > --- POWER (1) -------- Light Nuclear Core > --- PROPULSION (2) --- Wheel Subdweller Monowheel > --- UTILITY (2) ------ Large Storage Unit ECM Suite > --- WEAPON (2) ------- Subdweller Beam Cannon Battle Cannon > --- INVENTORY (15) --- Makeshift Power Source Light Treads Makeshift Leg Subdweller Monowheel Heat Sink Scrap Shield Makeshift Hacking Suite Power Bank Battle Rifle Grenade Launcher Plasma Cutter Flamer Flamer Makeshift Axe Peak State ------------ > --- POWER ------------ Light Nuclear Core > --- PROPULSION ------- Spiked Treads Wheel > --- UTILITY ---------- Large Storage Unit ECM Suite > --- WEAPON ----------- Subdweller Beam Cannon Makeshift Axe > --- INVENTORY -------- Makeshift Power Source Light Treads Makeshift Leg Subdweller Monowheel Heat Sink Scrap Shield Makeshift Hacking Suite Power Bank Battle Rifle Battle Cannon Grenade Launcher Plasma Cutter Flamer Flamer [Rating: 18] Favorites ----------- Power Light Nuclear Core Engine Light Ion Engine Power Core Light Nuclear Core Propulsion Wheel Treads Spiked Treads Leg Aluminum Leg Wheel Wheel Utility ECM Suite Device ECM Suite Storage Large Storage Unit Weapon Battle Cannon Energy Gun Medium Laser Energy Cannon Subdweller Beam Cannon Ballistic Gun Assault Rifle Ballistic Cannon Battle Cannon Slashing Weapon Mining Claw Build | -11 -10 -10 ------- Run | Yrd Mat Sub Slots Evolved . | . . . Power . | . . . Propulsion . | . . . Utility . | . . . Weapon . | . . . Parts Attached 17 | . 9 8 Power 1 | . 1 . Engine . | . . . Core 1 | . 1 . Reactor . | . . . Propulsion 7 | . 4 3 Treads 2 | . 1 1 Leg 1 | . 1 . Wheel 4 | . 2 2 Hover . | . . . Flight . | . . . Utility 2 | . 2 . Device 1 | . 1 . Storage 1 | . 1 . Processor . | . . . Hackware . | . . . Protection . | . . . Artifact . | . . . Weapon 7 | . 2 5 Energy Gun 2 | . 1 1 Energy Cannon 1 | . . 1 Ballistic Gun . | . . . Ballistic Cannon 2 | . . 2 Launcher . | . . . Special Weapon . | . . . Impact Weapon . | . . . Slashing Weapon 2 | . 1 1 Piercing Weapon . | . . . Special Melee Weapon . | . . . Unidentified Prototypes . | . . . Parts Lost 2 | . . 2 Power . | . . . Propulsion 1 | . . 1 Utility . | . . . Weapon 1 | . . 1 Highest Loss Streak 1 | . . 1 To Critical Strikes . | . . . Average Backups 12 | . 10 14 Power 2 | . 3 2 Propulsion 3 | . 4 3 Utility 2 | . . 3 Weapon 3 | . 2 4 Tool/Special . | . . . Unused Backups 22 | . 4 18 Power 4 | . . 4 Propulsion 5 | . 2 3 Utility 7 | . 2 5 Weapon 5 | . . 5 Tool/Special 1 | . . 1 Average Slot Usage (%) 99 | . 98 99 Engine 1 | . 5 . Core 12 | . 8 14 Treads 12 | . 11 12 Leg 1 | . 5 . Wheel 14 | . 11 15 Device 13 | . 12 14 Storage 14 | . 14 14 Energy Gun 6 | . 12 3 Energy Cannon 4 | . . 6 Ballistic Gun 4 | . 14 . Ballistic Cannon 9 | . . 14 Slashing Weapon 2 | . 1 2 Peak Build Rating 18 | . 10 18 Average Rating 13 | . 8 14 On Entrance 7 | 6 6 10 Avg Prop Armor Cover (%) 12 | . 12 12 Naked Turns . | . . . Heaviest Build 38 | 12 31 38 Greatest Support 20 | 20 20 10 Greatest Overweight (x) 3 | . 3 3 Average Overweight (x) 2 | . 2 2 Largest Inventory Capacity 15 | . 15 15 Average Capacity 14 | . 13 15 Most Carried 15 | . 15 15 Average Carried 13 | . 10 14 Final Capacity 15 | 8 15 15 Final Carried 15 | 6 15 15 Class Distribution -------------------- 100% | Mutant Dominant Class ---------------- Mutant | -10/Materials Mutant | -10/Subcaves Resources | -11 -10 -10 ----------- Run | Yrd Mat Sub Matter Collected 641 | 200 141 300 Remotely . | . . . Salvage Created 686 | . 291 395 Parts 44 | . 18 26 Haulers Intercepted . | . . . Recyclers Shooed . | . . . Parts Field Recycled . | . . . Retrieved Matter . | . . . Parts Self-Destructed 5 | . . 5 Prevented . | . . . Parts Restored . | . . . Kills | -11 -10 -10 ------- Run | Yrd Mat Sub Combat Hostiles Destroyed 17 | . 7 10 Guns 7 | . 6 1 Cannons 9 | . . 9 AOE 1 | . 1 . Classes Destroyed 2 | . 1 1 Grunt 8 | . 7 1 Subdweller 9 | . . 9 Best Kill Streak 3 | . 2 3 Combat Bots Only 3 | . 2 3 Max Kills in Single Turn 2 | . 2 1 Gunslinging . | . . . Exploded 1 | . 1 . Melee . | . . . Uniques/NPCs Destroyed . | . . . Combat | -11 -10 -10 -------- Run | Yrd Mat Sub Hostile Shots Fired 77 | . 24 53 Missed 19 | . 5 14 Hits 58 | . 19 39 Projectile 58 | . 19 39 Critical Strikes 3 | . 1 2 Damage Taken 1040 | . 298 742 Core 262 | . 65 197 Absorbed by Shields . | . . . Core Remaining (%) 100 | 100 . . Volleys Fired 59 | . 17 42 Largest 2 | . 2 2 Hottest 113 | . 70 113 Shots Fired 102 | . 34 68 Gun 48 | . 34 14 Cannon 54 | . . 54 Launcher . | . . . Special . | . . . Kinetic 59 | . 17 42 Thermal 40 | . 14 26 Explosive . | . . . Electromagnetic 3 | . 3 . Robot Hit Streak 13 | . 13 10 Robot Miss Streak 2 | . 2 1 Penetration Max . | . . . Secondary Targets 1 | . 1 . Max Gunslinging Chain 1 | . 1 . Shots Hit Robots 74 | . 23 51 Core Hits 32 | . 16 16 Critical Kills . | . . . Critical Parts Destroyed . | . . . Critical Strikes 4 | . 2 2 Burn 2 | . 2 . Blast 2 | . . 2 Melee Attacks 11 | . . 11 Impact . | . . . Slashing 11 | . . 11 Piercing . | . . . Sneak Attacks . | . . . Combat Hostiles . | . . . Follow-up Attacks . | . . . Damage Inflicted 1440 | . 376 1064 Guns 440 | . 290 150 Cannons 914 | . . 914 Explosions 86 | . 86 . Melee . | . . . Ramming . | . . . Kinetic 759 | . 122 637 Thermal 651 | . 224 427 Explosive . | . . . Electromagnetic 30 | . 30 . Impact . | . . . Slashing . | . . . Piercing . | . . . Highest Corruption . | . . . Average Corruption . | . . . Corruption Purged . | . . . Corruption Blocked . | . . . Overload Shots . | . . . Overflow Damage 4 | . . 4 Projectiles 4 | . . 4 Explosions . | . . . Melee . | . . . Knockbacks 11 | . . 11 Impact . | . . . Kinetic 11 | . . 11 Secondary . | . . . Self-Inflicted Damage 44 | . 44 . Shots 1 | . 1 . Rammed . | . . . Targets Rammed . | . . . Kicked . | . . . Crushed . | . . . Highest Temperature 141 | . 141 9 Average Temperature 37 | . 47 4 Received Heat Transfer 345 | . 165 180 Siege Activations . | . . . Martial Activations . | . . . Shielding Activations . | . . . Robots Disrupted . | . . . Combat Hostiles . | . . . Robots Corrupted . | . . . Combat Hostiles . | . . . Parts Fried . | . . . Impact Corruptions . | . . . Robots Melted . | . . . Combat Hostiles . | . . . Parts Melted 2 | . 2 . Heat Transferred 1345 | . 605 740 Parts Sabotaged . | . . . Parts Stolen . | . . . Parts Stripped . | . . . Power Chain Reactions 1 | . 1 . Alert | -11 -10 -10 ------- Run | Yrd Mat Sub Maximum Alert Level . | . . . Low Security (%) 100 | . 100 . Level 1 . | . . . Level 2 . | . . . Level 3 . | . . . Level 4 . | . . . Level 5 . | . . . High Security . | . . . Max Security . | . . . Peak Influence 55 | . 55 . Initial . | . . . Average 23 | . 23 . Influence Increases 210 | . 190 20 Destroy 0b10 Robot/C 160 | . 140 20 Destroy Leader 40 | . 40 . Successful Hack 4 | . 4 . Destroy Structure 6 | . 6 . Influence Decreases 210 | . 190 20 Time Decay 210 | . 190 20 Squads Dispatched 1 | . 1 . Investigation . | . . . Extermination . | . . . Reinforcement 1 | . 1 . Assault . | . . . Garrison . | . . . Intercept . | . . . Searches Triggered . | . . . Construction Impeded . | . . . Haulers Reinforced . | . . . Active Scanning Responses . | . . . Cargo Convoy Interrupts . | . . . Stealth | -11 -10 -10 --------- Run | Yrd Mat Sub Distress Signals 1 | . 1 . Communications Jammed . | . . . Distress Signals . | . . . Times Spotted 32 | . 15 17 Peak Tracking Total 4 | . 4 3 Tactical Retreats 7 | . 2 5 ECM-based Alert Blocks 7 | . 3 4 Traps | -11 -10 -10 ------- Run | Yrd Mat Sub Traps Triggered . | . . . Indirectly . | . . . Trap Hack Attempts . | . . . Triggered . | . . . Disarmed . | . . . Reprogrammed . | . . . Reused . | . . . Traps Extracted . | . . . Installed . | . . . Triggered . | . . . Machines | -11 -10 -10 ---------- Run | Yrd Mat Sub Machines Disabled 1 | . . 1 Max in Single Turn 1 | . . 1 Machines Repaired . | . . . Machines Dismantled . | . . . Machines Sabotaged . | . . . Overloaded Fab Kills . | . . . Hacking | -11 -10 -10 --------- Run | Yrd Mat Sub Machines Accessed 3 | . 2 1 Terminals 2 | . 2 . Fabricators . | . . . Repair Stations . | . . . Recycling Units . | . . . Scanalyzers . | . . . Garrison Access . | . . . Total Hacks 13 | . 4 9 Successful 10 | . 1 9 Failed 3 | . 3 . Catastrophic 1 | . 1 . Database Lockouts . | . . . Manual 4 | . 4 . Terminals 4 | . 4 . Fabricators . | . . . Repair Stations . | . . . Recycling Units . | . . . Scanalyzers . | . . . Garrison Access . | . . . Terminal Hacks 9 | . . 9 Record 8 | . . 8 Proto ID Catalog 1 | . . 1 Fabricator Hacks . | . . . Repair Station Hacks . | . . . Recycling Unit Hacks . | . . . Scanalyzer . | . . . Garrison Access Hacks . | . . . Unauthorized Hacks 1 | . 1 . Terminals 1 | . 1 . Skim 1 | . 1 . Fabricators . | . . . Repair Stations . | . . . Recycling Units . | . . . Scanalyzers . | . . . Garrison Access . | . . . Data Cores Recovered . | . . . Used . | . . . Hacking Detections 2 | . 2 . Full Trace Events . | . . . Feedback Events . | . . . Feedback Blocked . | . . . Robot Schematics Acquired . | . . . Robots Built . | . . . Authchips . | . . . Time . | . . . Total Robot Build Rating . | . . . Part Schematics Acquired . | . . . Parts Built . | . . . Authchips . | . . . Time . | . . . Total Part Build Rating . | . . . Part Studies Acquired . | . . . Parts Repaired . | . . . Time . | . . . Parts Recycled . | . . . Recycled Matter . | . . . Retrieved Matter . | . . . Retrieved Components . | . . . Parts Scanalyzed . | . . . Part Schematics Acquired . | . . . Parts Damaged . | . . . Bothacking | -11 -10 -10 ------------ Run | Yrd Mat Sub Used RIF Installer . | . . . Robots Hacked . | . . . Non-combat . | . . . Combat . | . . . Robot Hacks Applied . | . . . Relay Couplers Released . | . . . Fabnet Peak Effective % . | . . . Robots Rewired . | . . . Allies Hacked . | . . . Hacks Repelled . | . . . Allies | -11 -10 -10 -------- Run | Yrd Mat Sub Total Allies . | . . . Largest Group . | . . . Highest-Rated Group . | . . . Highest-Rated Ally . | . . . Total Orders . | . . . Ally Attacks . | . . . Total Damage . | . . . Kills . | . . . Allies Corrupted . | . . . Allies Melted . | . . . Intel | -11 -10 -10 ------- Run | Yrd Mat Sub Active Infowar (turns) 1525 | . 407 1118 ECM 1525 | . 407 1118 Robot Analysis Total . | . . . Derelict Logs Recovered 1 | . . 1 Drone Launches . | . . . Drone Recoveries . | . . . Exploration | -11 -10 -10 ------------- Run | Yrd Mat Sub Turns Passed 1581 | . 463 1118 Spaces Moved 934 | 1 267 666 Core . | . . . Treads . | . . . Legs 53 | 1 52 . Wheels 881 | . 215 666 Hover . | . . . Flight . | . . . Fastest Speed 110 | 120 110 110 Average Speed 124 | 120 121 124 Slowest Speed 125 | 120 125 125 Overloaded Moves . | . . . Propulsion Burnouts . | . . . Robots Hopped . | . . . Potential Cave-ins . | . . . Cave-ins Triggered . | . . . Exploration Rate (%) 33 | 2 56 41 Regions Visited 2 Branch Regions 1 Pre-discovered Areas 1 | . . 1 Known Exits Taken . | . . . Unknown Exits Taken 2 | 1 1 . Scrap Searched 10 | . . 10 Spaces Dug . | . . . Terrain Destroyed 7 | . 4 3 Melee . | . . . Projectile 3 | . . 3 AOE 4 | . 4 . Terrain Rammed . | . . . Walls Destroyed . | . . . Machines Disabled . | . . . Actions | -11 -10 -10 --------- Run | Yrd Mat Sub Total 1241 | . 368 873 Wait 179 | . 65 114 Move 932 | . 266 666 Hop . | . . . Pick Up 20 | . 8 12 Fast Attach 5 | . 2 3 Attach . | . . . Detach . | . . . Swap 16 | . 7 9 Drop 19 | . 3 16 Fire 59 | . 17 42 Melee 11 | . . 11 Ram . | . . . Kick . | . . . Crush . | . . . Escape Stasis . | . . . Rewire . | . . . Trap . | . . . Miscellaneous . | . . . Route ------- -11/Scrapyard -10/Materials (discovered 4 exits: [*Mat x2] / [*Min] / *Sub) -10/Subcaves (discovered 1 exit: [*Mat]) History --------- Turn | Location | Event 1 | -11/Scrapyard | Discovered new exit (range 0) 1 | -11/Scrapyard | Entered Materials 83 | -10/Materials | Discovered new exit (range 9) 132 | -10/Materials | Discovered new exit (range 14) 304 | -10/Materials | Build established: Mutant 370 | -10/Materials | Discovered new exit (range 7) 452 | -10/Materials | Discovered new exit (range 9) 464 | -10/Materials | Entered Subcaves 501 | -10/Subcaves | Shifting Twisted Machinery released Battle Cannon 517 | -10/Subcaves | Shifting Twisted Machinery released Sub. Beam Cannon 538 | -10/Subcaves | Learned location of Mines (-9) 800 | -10/Subcaves | Shifting Twisted Machinery released Battle Cannon 802 | -10/Subcaves | Shifting Twisted Machinery released Flamer 806 | -10/Subcaves | Discovered new exit (range 15) 839 | -10/Subcaves | Core integrity fell below 50% 1066 | -10/Subcaves | Visited 4L-MR0's lab 1135 | -10/Subcaves | Found Power Bank 1472 | -10/Subcaves | Core integrity fell below 20% 1557 | -10/Subcaves | A swath of the cavern ceiling suddenly collapsed 1582 | -10/Subcaves | Destroyed by 6B-A6Q(R) with Subdweller Machine Gun Last Messages --------------- 01215_ L9-RDJ(R) Sub. Machine Gun blasted off. 01220_ Acquired 10 matter. 01224_ L9-RDJ(R) knocked back. 01298_ L9-RDJ(R) destroyed. 01303_ Acquired 19 matter. 01304_ Acquired 4 matter. 01309_ Acquired 9 matter. 01314_ Acquired 3 matter. 01460_ XR-KZ0(R) knocked back. 01463_ XR-KZ0(R) destroyed. 01465_ Spk. Treads destroyed. 01471_ 19-AAN(R) destroyed. 01478_ Acquired Sub. Monowheel. 01479_ Acquired 20 matter. 01557_ Sub. Power Source crushed. 01557_ 11 Matter crushed. A swath of the cavern ceiling suddenly collapses. 01575_ 6B-A6Q(R) knocked back. 01578_ 6B-A6Q(R) Disposable Heat Sink blasted off. 01578_ 6B-A6Q(R) knocked back. Map ----- +----------------------------------------------------+ | ### ????? #?## ##?????#???????????????????????? | | # ??????# ## ##????? ##??????????????????????? | | ### ##?????# # #???### #??????????????????????? | | #? #???????# ##?# #?????##????????????????? | | ### ##???????##!&## ### #????????????????? | | # ##????????##%! #????????????????? | | # #?????????#%%] #????????????????? | | ?# ##????????# ! #### ??????????????? | | ?## #???????## ####???????? ???????????????? | | ??# #####???# ##???????????????????????????? | | ??## ##?## #???????????????????????????? | | ???## ### #?????#?????????????????????? | | ????## #????? #????????????????????? | | ?????# #????# ????????????????????? | | ?????# ## ##???? ????????????????????? | | ????## ## ##????? #????????????????????? | | ??### ## ##?????# ##???????????????????? | | ?## ### ##?????? ????????????????????? | | ?# ### #??????? ????????????????????? | | ?# #?# ##??????# ????????????????????? | | ?# ##?## ##?????# ##???????????????????? | | ?# ##???# #????? "????????????????????? | | ?## #???## #????? #????????????????????? | | ??## ####??## #????? #????????????????????? | | ???###??????# ##????## #????????????????????? | | ????????????# #######@ #????????????????????? | | ????????????# ### ;#???????????????????? | | ????????????# ## # %!##???? #?????????????? | | ????????????##?# % R## "#??????????????? | | ???????????????# ###### # #???????????????? | | ???????????????###????# """% ##???????????????? | | ??????????????????????#""#"#; ##????????????????? | | ?????????????????????"""#""""###?????????????????? | | ???????????????????"""##""""##???????????????????? | | ????????????????? "#""??#""###???????????????????? | | ??????????????? ?##??? """ ??????????????????? | | ????????????? ????????""##" ?????????????????? | | ???????????? ?????????#[" " ????????????????? | | ????????????????????????### ####????????????????? | | ????????????????????????? ???????????????????? | | ????????????????????????? #???????????????????? | | ?????????????????????????? ??????????????????????? | | ?????????????????????????????????????????????????? | | ?????????????????????????????????????????????????? | | ?????????????????????????????????????????????????? | | ?????????????????????????????????????????????????? | | ?????????????????????????????????????????????????? | | ?????????????????????????????????????????????????? | | ?????????????????????????????????????????????????? | | ?????????????????????????????????????????????????? | +----------------------------------------------------+ Best States ------------- Heat Dissipation 25 Energy Generation 14 Energy Capacity 160 Matter Stores 300 Matter Capacity 300 Sight Range 16 Terrain Scan Density 10 ECM Strength 1 Evasion (%) 55 Item Schematics ----------------- None Robot Schematics ------------------ None Fabricated ------------ Nothing Repaired ---------- Nothing Studied --------- None Alien Tech Used ----------------- None Achievements -------------- None Challenges ------------ None Game ------ Seed SeismicPotentialBasin Manual? 0 Play Time 00:22:19 Cumulative 161.1 hours Start 2025.11.07 @ 19:31:28 End 2025.11.07 @ 19:55:20 Sessions 1 Manual Loads 0 Difficulty Rogue Special Mode None Game No. 173 Rogue 171 Adventurer 2 Explorer 0 Win Type - Total 0 Types 0/0/0/0/0/0/0/0/0/0 Lore% 65 Gallery% 57 Achievement% 32 Wizard Run 0 Options --------- Layout 2 ASCII 0 Keyboard 1 Movement Vi Keybinds 0 Fullscreen 0 Font 42/SmallcapsGlow Map View 29x24 Zoom Use 99% Tactical HUD 1 Map Filters NONE Filters NONE Steam 1 RUN: 4dcc7eff-278f-46ac-bb50-a57ca28941ec